bitfinex/quotes_ETHUSD_20250129
["timestamp","ask_amount","ask_price","bid_price","bid_amount"]
[1738161220258,3.21305,3112.3,3111.8,0.08062892]
[1738161220563,3.91999384,3112.3,3111.8,0.08062892]
[1738161220704,3.21328,3112.1,3111.5,0.55]
[1738161221057,3.2135,3111.9,3111.5,0.55]
[1738161221371,3.2135,3111.9,3111.6,0.08073846]
[1738161221722,3.21328,3112.1,3111.6,0.08073846]
[1738161221922,6.1739,3113.1,3112.0,3.21328]
[1738161222173,3.21205,3113.3,3112.7,3.21263]
[1738161222343,3.21183,3113.5,3112.7,3.21261]
[1738161222521,3.21192,3113.4,3112.8,3.29230745]
[1738161222844,3.84832308,3113.5,3112.9,3.24451262]
[1738161223002,0.8147,3113.9,3113.0,4.92854]
[1738161223222,3.21178,3113.6,3113.1,0.07890974]
[1738161223400,0.321178,3113.6,3113.1,0.07890974]
[1738161223676,3.21165,3113.7,3113.1,0.07890974]
[1738161223867,3.21172,3113.6,3113.1,0.07890974]
[1738161224153,3.21184,3113.5,3113.1,0.07890974]
[1738161225161,3.21212,3113.2,3113.1,0.07890974]
[1738161225341,3.21195,3113.4,3113.1,0.07890974]
[1738161225669,3.21212,3113.2,3113.1,0.07890974]
[1738161226213,3.21223,3113.1,3113.0,0.402]
[1738161226557,3.21223,3113.1,3113.0,0.48084113]
[1738161227056,3.21316,3112.2,3112.1,0.403]
[1738161227429,3.21305,3112.3,3111.7,0.8224]
[1738161227430,3.21357,3111.8,3111.7,0.8224]
[1738161227644,0.321357,3111.8,3110.9,0.7655]
[1738161227799,3.21417,3111.3,3110.9,0.7655]
[1738161228205,3.21371,3111.7,3111.0,3.21433]
[1738161228817,3.21389,3111.5,3111.1,0.403]
[1738161229185,3.21371,3111.7,3111.0,3.21439]
[1738161229477,3.21371,3111.7,3111.1,0.402]
[1738161229674,3.535081,3111.7,3111.1,0.402]
[1738161230583,6.748851,3111.7,3111.1,0.402]
[1738161230946,3.535081,3111.7,3111.2,0.03213876]
[1738161231144,0.321371,3111.7,3111.0,2.0]
[1738161231345,3.21382,3111.6,3111.0,2.0]
[1738161231708,3.21382,3111.6,3111.1,0.4]
[1738161231887,3.21346,3112.0,3111.4,0.55]
[1738161232043,0.8085,3112.4,3111.4,0.55]
[1738161232044,3.21326,3112.1,3111.5,0.03213416]
[1738161232373,3.2131,3112.3,3111.7,1.317]
[1738161232587,3.21328,3112.1,3111.7,1.317]
[1738161232787,3.21337,3112.0,3111.7,1.317]
[1738161233155,0.04016637,3112.2,3111.4,2.0]
[1738161233375,3.21362,3111.8,3111.7,0.398]
[1738161234997,3.21414,3111.3,3111.1,0.396]
[1738161235143,3.21392,3111.5,3111.1,0.396]
[1738161235334,3.21392,3111.5,3110.9,2.79704143]
[1738161235549,3.21392,3111.5,3111.0,0.396]
[1738161236050,3.21353,3111.9,3111.3,2.0]
[1738161236250,3.0,3112.2,3111.3,2.0]
[1738161236457,3.21352,3111.9,3111.4,0.0803692]
[1738161236945,4.12999,3112.1,3111.4,0.0803692]
[1738161237141,3.2133,3112.1,3111.6,3.21376]
[1738161237477,3.2133,3112.1,3111.7,0.08020488]
[1738161237783,3.21274,3112.6,3111.8,0.8065]
[1738161237955,3.21311,3112.3,3111.8,0.8065]
[1738161238152,3.21267,3112.7,3112.0,3.21327]
[1738161238353,3.21267,3112.7,3112.1,3.29316584]
[1738161238566,3.21243,3112.9,3112.1,0.07998584]
[1738161238790,3.21302,3112.4,3112.1,0.07998584]
[1738161238978,3.21269,3112.7,3111.8,0.83862959]
[1738161239149,3.21246,3112.9,3112.2,0.07993108]
[1738161239346,3.0,3113.3,3112.1,2.0]
[1738161239347,3.21272,3112.7,3112.1,2.0]
[1738161239550,3.21279,3112.6,3112.3,0.07987634]
[1738161239744,3.21286,3112.5,3112.2,0.07993108]
[1738161239983,3.534069,3112.6,3112.4,0.07982159]
[1738161240205,3.21295,3112.4,3112.3,0.07987634]
[1738161240406,3.21377,3111.7,3111.4,0.7604]
[1738161240607,3.2136,3111.8,3111.4,0.7604]
[1738161240812,3.21385,3111.6,3111.5,0.08031442]
[1738161241103,0.32136,3111.8,3111.2,2.0]
[1738161241316,3.21374,3111.7,3111.5,0.08031442]
[1738161241477,6.42752,3111.7,3111.2,2.0]
[1738161241681,3.21374,3111.7,3111.6,0.08025965]
[1738161241907,3.21326,3112.1,3111.2,0.398]
[1738161242072,3.21367,3111.7,3111.6,0.08025965]
[1738161242406,3.21357,3111.9,3111.6,0.08024513]
[1738161242589,3.21357,3111.9,3111.3,0.397]
[1738161242795,6.42712,3111.9,3111.4,0.08035468]
[1738161242978,3.21355,3111.9,3111.4,0.08035468]
[1738161243169,3.0,3112.0,3111.4,0.08035468]
[1738161243505,0.63856869,3112.3,3111.4,0.08035468]
[1738161243707,5.37,3112.5,3111.6,2.0]
[1738161243883,3.21347,3111.9,3111.5,0.399]
[1738161244081,3.21305,3112.3,3111.8,3.21353]
[1738161244281,3.21265,3112.7,3112.0,0.0075]
[1738161244531,3.21217,3113.2,3112.2,0.5575]
[1738161244674,3.21198,3113.4,3112.5,5.21281]
[1738161244870,3.21235,3113.0,3112.5,5.21281]
[1738161245067,3.21213,3113.2,3112.6,0.07965407]
[1738161245269,3.21203,3113.3,3112.6,0.07965407]
[1738161245511,3.21221,3113.2,3112.6,0.07965407]
[1738161245825,3.21221,3113.2,3112.6,3.29239407]
[1738161245984,3.533138,3113.4,3112.6,0.07965407]
[1738161245985,0.321198,3113.4,3112.6,0.07965407]
[1738161246171,3.7585,3113.8,3112.6,0.07965407]
[1738161246172,3.21264,3112.7,3112.6,0.07965407]
[1738161246369,3.21257,3112.8,3112.2,4.03242]
[1738161246572,3.21281,3112.6,3112.2,0.8193]
[1738161246844,3.21304,3112.4,3112.3,0.07941222]
[1738161247309,3.21304,3112.4,3112.1,0.29723649]
[1738161247714,3.21304,3112.4,3112.3,0.29723649]
[1738161248627,3.21274,3112.6,3112.3,0.29723649]
[1738161248628,3.0,3112.6,3112.3,0.29723649]
[1738161248848,6.2128,3112.6,3112.3,0.29723649]
[1738161249142,3.21242,3113.0,3112.4,3.21293]
[1738161249291,3.21242,3113.0,3112.5,3.21284]
[1738161249493,6.42484,3113.0,3112.3,8.42597]
[1738161249693,1.1264108,3113.3,3112.2,0.788]
[1738161249694,3.21261,3112.8,3112.4,35.0]
[1738161249933,3.21261,3112.8,3112.2,0.788]
[1738161250246,3.21236,3113.0,3112.4,3.21285]
[1738161250449,1.76949016,3113.3,3112.2,4.00109]
[1738161250593,3.21263,3112.8,3112.2,4.00109]
[1738161250789,3.21274,3112.7,3112.2,0.788]
[1738161251120,3.21227,3113.1,3112.4,3.21292]
[1738161251319,0.7762,3113.7,3113.0,3.21231]
[1738161251520,3.21142,3113.9,3113.3,3.212]
[1738161251706,3.21138,3114.0,3113.3,3.21196]
[1738161251904,3.21143,3113.9,3113.3,38.21196]
[1738161252104,3.21143,3113.9,3113.3,35.0]
[1738161252319,3.21167,3113.7,3113.3,35.0]
[1738161252512,3.21167,3113.7,3112.9,5.96884]
[1738161252513,3.21182,3113.5,3112.9,5.96884]
[1738161252714,3.21167,3113.7,3113.2,3.21211]
[1738161253053,3.21142,3113.9,3113.3,3.21201]
[1738161253815,6.42291,3113.9,3113.3,3.21201]
[1738161254020,3.21142,3113.9,3113.4,3.21188]
[1738161254209,3.21125,3114.1,3113.5,3.24386601]
[1738161254555,3.21125,3114.1,3113.6,0.778]
[1738161255040,3.21152,3113.8,3113.4,0.29679225]
[1738161255340,0.321125,3114.1,3113.4,0.29679225]
[1738161255341,3.21137,3114.0,3113.4,0.29679225]
[1738161255501,3.2111,3114.2,3113.5,0.0321148]
[1738161255706,3.21121,3114.1,3113.5,3.2438248]
[1738161255907,3.21121,3114.1,3113.6,0.07793711]
[1738161256207,3.21132,3114.0,3113.6,0.07793711]
[1738161256706,3.21141,3113.9,3113.7,0.07788241]
[1738161256942,3.21141,3113.9,3113.4,0.29679225]
[1738161257109,3.21141,3113.9,3113.8,0.07782771]
[1738161257324,3.21115,3114.2,3113.4,3.50869225]
[1738161257654,3.21127,3114.1,3113.5,3.21178]
[1738161258009,3.21132,3114.0,3113.6,0.07793711]
[1738161258379,3.21132,3114.0,3113.3,2.0]
[1738161258380,3.21136,3114.0,3113.3,5.21195]
[1738161258645,3.21141,3113.9,3113.7,0.07788241]
[1738161259055,3.21151,3113.8,3113.3,5.21201]
[1738161259346,3.21136,3114.0,3113.3,5.21201]
[1738161259547,3.21129,3114.1,3113.4,3.21191]
[1738161259716,3.2113,3114.0,3113.5,3.21181]
[1738161260228,3.21114,3114.2,3113.5,3.21181]
[1738161260229,3.21112,3114.2,3113.6,3.21168]
[1738161260422,3.21125,3114.1,3113.6,3.21168]
[1738161260941,3.0,3114.4,3113.7,3.21161]
[1738161261137,0.63858961,3114.5,3113.8,3.3083]
[1738161261344,1e-05,3114.5,3114.4,3.96919]
[1738161261671,1e-05,3114.5,3114.4,4.52669]
[1738161261870,1e-05,3114.5,3114.4,39.53419]
[1738161262170,1e-05,3114.5,3114.4,39.59290344]
[1738161262734,1e-05,3114.5,3114.4,42.59290344]
[1738161263057,1e-05,3115.1,3115.0,9.14387]
[1738161263283,1e-05,3115.1,3115.0,13.35959361]
[1738161263457,0.00075561,3116.3,3115.9,0.1686]
[1738161263779,0.00075561,3116.3,3115.9,0.415]
[1738161263780,3.20924,3116.0,3115.9,0.415]
[1738161263938,3.20906,3116.2,3115.9,0.415]
[1738161264129,0.32170717,3116.3,3115.9,0.415]
[1738161264460,0.00075561,3116.3,3115.9,0.415]
[1738161264632,3.20977561,3116.3,3115.9,0.415]
[1738161264836,0.33846702,3116.3,3115.9,0.415]
[1738161265039,3.20924,3116.0,3115.9,0.415]
[1738161266165,3.21016,3115.1,3115.0,0.05870213]
[1738161266402,3.2105,3114.8,3114.6,0.417]
[1738161266677,3.21058,3114.7,3114.6,0.417]
[1738161266974,3.21031,3115.0,3114.6,0.417]
[1738161267131,0.7824,3115.3,3114.6,0.417]
[1738161267326,3.21041,3114.9,3114.6,0.417]
[1738161267533,3.21058,3114.7,3114.6,0.417]
[1738161268547,3.2109,3114.4,3114.0,2.0]
[1738161268787,3.2112,3114.1,3114.0,2.417]
[1738161269063,3.21093,3114.4,3114.0,2.417]
[1738161269265,3.21095,3114.4,3114.0,2.417]
[1738161269584,3.2112,3114.1,3114.0,0.417]
[1738161270843,3.2112,3114.1,3114.0,0.49010542]
[1738161271047,3.853429,3114.1,3114.0,0.07310542]
[1738161271246,1.446529,3114.1,3113.0,0.415]
[1738161271473,3.21171,3113.6,3113.0,0.415]
[1738161271893,3.21171,3113.6,3113.0,35.415]
[1738161272185,3.21171,3113.6,3113.0,0.415]
[1738161272689,3.21171,3113.6,3113.1,35.0]
[1738161273226,3.21171,3113.6,3113.0,0.415]
[1738161273686,3.21223,3113.1,3112.9,35.0]
[1738161273863,3.21257,3112.8,3112.4,2.0]
[1738161274192,3.21233,3113.0,3112.4,0.415]
[1738161274504,3.21212,3113.2,3112.4,35.0]
[1738161274654,3.2125,3112.9,3112.4,35.415]
[1738161274855,0.403192,3113.1,3112.4,35.415]
[1738161275167,6.42494,3112.9,3112.4,35.415]
[1738161275372,3.21243,3112.9,3112.4,35.415]
[1738161275675,3.21254,3112.8,3112.4,35.415]
[1738161276268,6.42438,3113.2,3112.4,40.62793]
[1738161276460,3.21228,3113.1,3112.5,3.21276]
[1738161276869,3.21213,3113.2,3112.7,3.21264]
[1738161277269,3.21213,3113.2,3112.6,0.03212463]
[1738161277587,0.63142069,3113.4,3112.8,3.21251]
[1738161277804,3.21174,3113.6,3113.0,3.2123]
[1738161278102,3.2119,3113.5,3112.9,2.0]
[1738161278395,3.21155,3113.8,3113.1,38.21216]
[1738161278598,3.21199,3113.4,3113.1,35.0]
[1738161278971,3.21178,3113.6,3113.1,35.0]
[1738161279300,3.21173,3113.6,3113.1,38.21222]
[1738161279997,3.21173,3113.6,3113.1,35.0]
[1738161280315,3.21173,3113.6,3113.1,35.409]
[1738161280316,3.21212,3113.2,3113.1,35.409]
[1738161280511,3.21212,3113.2,3113.1,0.409]
[1738161281120,3.21199,3113.4,3113.1,0.409]
[1738161281316,3.21173,3113.6,3113.1,0.409]
[1738161281457,3.21136,3114.0,3113.3,3.21195]
[1738161281659,0.321136,3114.0,3113.1,3.6212]
[1738161281999,3.21172,3113.6,3113.1,0.409]
[1738161282199,3.21172,3113.6,3113.1,3.62121]
[1738161282561,0.6550266,3114.0,3113.1,0.409]
[1738161282762,3.21208,3113.3,3113.0,0.406]
[1738161283192,3.21174,3113.6,3113.0,3.61823]
[1738161283393,1.4140266,3114.0,3113.1,0.406]
[1738161283394,3.21182,3113.5,3113.1,0.406]
[1738161283603,0.321182,3113.5,3112.8,35.7794]
[1738161283778,0.321182,3113.5,3112.5,0.8017]
[1738161283779,3.21243,3112.9,3112.5,0.8017]
[1738161283976,3.21243,3112.9,3112.3,2.0]
[1738161284184,3.21271,3112.7,3112.1,0.8017]
[1738161284379,0.8134,3113.2,3111.9,5.21345]
[1738161284380,3.21305,3112.3,3112.2,0.406]
[1738161284582,0.85355712,3113.2,3111.7,2.7919]
[1738161284583,3.21343,3112.0,3111.7,2.7919]
[1738161284800,3.21374,3111.7,3111.3,2.0]
[1738161285006,3.2144,3111.0,3110.9,2.7919]
[1738161285313,3.21457,3110.9,3110.6,0.50288746]
[1738161285470,3.21457,3110.9,3110.5,1.2039]
[1738161285810,3.0,3111.2,3110.5,0.412]
[1738161285994,3.21466,3110.8,3110.6,0.07415897]
[1738161286304,3.21443,3111.0,3110.6,0.07415897]
[1738161286601,3.2147,3110.8,3110.6,0.07415897]
[1738161286767,3.21442,3111.0,3110.6,0.07415897]
[1738161287169,3.21471,3110.7,3110.6,0.07415897]
[1738161287522,3.857648,3110.7,3110.6,0.07415897]
[1738161287720,3.857648,3110.7,3109.9,0.413]
[1738161288000,3.21504,3110.4,3109.9,0.413]
[1738161288217,3.21526,3110.2,3109.9,0.413]
[1738161288574,3.21505,3110.4,3109.9,0.413]
[1738161289271,3.21519,3110.3,3109.9,0.413]
[1738161289606,3.21505,3110.4,3109.9,0.413]
[1738161289781,3.21512,3110.3,3109.9,0.413]
[1738161290315,3.21499,3110.5,3109.9,0.413]
[1738161290608,3.21485,3110.6,3109.9,0.413]
[1738161290609,3.21505,3110.4,3109.9,0.413]
[1738161290806,3.21485,3110.6,3110.0,3.21539]
[1738161290980,3.21485,3110.6,3110.0,3.24754334]
[1738161291189,3.21485,3110.6,3110.0,3.21539]
[1738161291381,3.21499,3110.5,3109.9,3.62849]
[1738161291581,3.21525,3110.2,3109.9,0.413]
[1738161291785,0.642984,3110.5,3109.8,2.544]
[1738161291786,3.21553,3109.9,3109.8,2.544]
[1738161292570,3.21542,3110.1,3109.8,2.544]
[1738161292822,3.21552,3110.0,3109.8,2.544]
[1738161293130,3.21542,3110.1,3109.8,2.544]
[1738161293506,3.21543,3110.0,3109.8,2.544]
[1738161294101,3.21553,3109.9,3109.8,2.544]
[1738161294300,3.858626,3109.9,3109.8,2.544]
[1738161295323,3.21553,3109.9,3109.8,2.544]
[1738161295823,3.21553,3109.9,3108.9,3.97554]
[1738161295824,3.21597,3109.5,3108.9,3.97554]
[1738161295998,3.21597,3109.5,3108.9,4.38254]
[1738161296202,3.2162,3109.3,3109.0,0.07651835]
[1738161296459,3.21636,3109.1,3109.0,0.07651835]
[1738161296825,3.21686,3108.7,3108.4,0.407]
[1738161297113,3.21689,3108.6,3108.5,0.07899004]
[1738161297315,3.21689,3108.6,3107.9,5.2176]
[1738161297614,3.21689,3108.6,3108.5,0.07899004]
[1738161297776,3.21689,3108.6,3108.0,0.406]
[1738161297981,3.21689,3108.6,3108.5,0.07899004]
[1738161298181,3.21669,3108.8,3108.0,3.21747]
[1738161298377,3.21669,3108.8,3108.5,0.07899004]
[1738161298593,3.2165,3109.0,3108.2,3.21721]
[1738161298802,3.21671,3108.8,3108.6,0.07934621]
[1738161298982,3.21671,3108.8,3108.2,3.21721]
[1738161299318,3.21693,3108.6,3108.1,0.407]
[1738161299518,3.21693,3108.6,3108.3,0.07951086]
[1738161299680,3.21708,3108.4,3108.0,0.405]
[1738161300034,3.21719,3108.3,3108.1,0.07962064]
[1738161300260,0.7714,3108.8,3108.1,0.07962064]
[1738161300437,3.21643,3109.1,3108.4,3.21701]
[1738161300596,3.0,3109.0,3108.2,0.07956574]
[1738161300804,3.0,3109.0,3107.9,0.407]
[1738161300805,3.21707,3108.5,3107.9,0.407]
[1738161300996,3.0,3109.0,3107.8,0.409]
[1738161301257,3.21674,3108.8,3108.1,3.21733]
[1738161301560,3.0,3109.0,3108.2,0.11173754]
[1738161301856,3.21545,3110.0,3109.3,3.21606]
[1738161301998,3.21571,3109.8,3109.2,3.21623]
[1738161302217,3.2159,3109.6,3109.4,0.07614681]
[1738161302445,3.2159,3109.6,3108.3,2.0]
[1738161302446,3.21668,3108.8,3108.3,2.0]
[1738161302657,3.21632,3109.2,3108.6,3.21682]
[1738161302799,3.21632,3109.2,3108.2,1.1708]
[1738161302800,5.37,3109.6,3108.9,0.7588]
[1738161303005,3.21513,3110.3,3109.6,3.21579]
[1738161303006,0.8312,3110.3,3109.6,3.21579]
[1738161303253,3.21549,3110.0,3109.2,2.0]
[1738161303404,3.86348242,3110.1,3109.7,0.07598227]
[1738161303603,3.86348242,3110.1,3109.5,3.21585]
[1738161303852,4.04637,3110.3,3109.4,3.21599]
[1738161303853,3.0,3110.2,3109.8,0.07592744]
[1738161304001,6.21526,3110.2,3109.6,3.21582]
[1738161304207,3.21543,3110.0,3109.9,0.0758726]
[1738161304403,3.21623,3109.3,3109.0,0.05881542]
[1738161304924,3.21673,3108.8,3108.6,0.419]
[1738161305099,3.21677,3108.7,3108.6,0.419]
[1738161305301,3.21676,3108.8,3108.6,0.419]
[1738161305554,7.21572361,3109.3,3108.6,0.419]
[1738161305555,3.21623,3109.3,3108.6,0.419]
[1738161305764,4.64103066,3109.5,3108.7,0.7648]
[1738161305942,1.42505066,3109.5,3108.8,3.2166]
[1738161306118,7.43146361,3109.7,3109.1,3.21635]
[1738161306327,3.21574,3109.7,3109.0,3.21645]
[1738161306523,0.7939,3110.0,3109.0,3.21645]
[1738161306867,3.21585,3109.6,3109.0,3.21645]
[1738161306999,3.21582,3109.7,3109.0,3.21645]
[1738161307202,3.21539,3110.1,3109.5,3.21593]
[1738161307466,3.21581,3109.7,3109.2,2.0]
[1738161307606,3.21602,3109.5,3108.8,2.0]
[1738161307820,3.21602,3109.5,3108.9,3.63455]
[1738161308171,3.537361,3109.7,3108.9,3.63455]
[1738161308446,3.21602,3109.5,3108.9,0.418]
[1738161308638,3.21602,3109.5,3108.9,3.63456]
[1738161308874,3.21541,3110.1,3109.4,3.21599]
[1738161309070,0.7939,3110.3,3109.4,0.8308]
[1738161309275,3.21563,3109.9,3109.4,0.8308]
[1738161309574,3.21626,3109.2,3108.9,0.418]
[1738161309710,3.21616,3109.3,3108.9,0.418]
[1738161309927,0.7988,3109.5,3108.9,0.418]
[1738161310234,1.50569848,3109.9,3108.9,0.418]
[1738161310568,3.21572,3109.8,3109.2,3.21619]
[1738161310711,3.21572,3109.8,3109.3,3.21613]
[1738161310918,5.37,3110.0,3109.5,3.21589]
[1738161311466,3.21565,3109.8,3109.3,3.2161]
[1738161311836,8.58543,3110.0,3109.1,0.7598]
[1738161311837,3.21591,3109.6,3109.1,0.7598]
[1738161312037,6.152,3110.0,3108.9,0.418]
[1738161312038,3.21616,3109.3,3108.9,0.418]
[1738161312225,0.04770683,3109.8,3108.7,0.8107]
[1738161312424,0.04770683,3109.8,3107.7,6.76172361]
[1738161312425,3.21702,3108.5,3108.2,2.0]
[1738161312652,0.04021243,3108.6,3108.1,0.8107]
[1738161312961,3.21719,3108.3,3108.2,0.07379101]
[1738161313128,3.25741033,3108.3,3107.8,0.421]
[1738161313452,0.32570424,3108.6,3108.2,0.07373627]
[1738161313656,0.782,3108.9,3108.3,3.21717]
[1738161313848,3.99864,3108.9,3108.3,3.29077138]
[1738161314049,0.782,3108.9,3108.3,0.07368138]
[1738161314251,3.21708,3108.4,3108.3,0.07368138]
[1738161314542,3.21722,3108.3,3107.7,2.969]
[1738161314721,0.782,3108.9,3107.7,3.00117604]
[1738161314924,3.21656,3109.0,3108.3,0.7733]
[1738161315237,3.21628,3109.2,3108.5,3.21697]
[1738161315444,3.21628,3109.2,3108.3,3.99046]
[1738161315445,3.21606,3109.4,3108.4,3.21708]
[1738161315751,3.0,3109.6,3109.0,3.21641]
[1738161315752,3.21589,3109.6,3109.0,3.21641]
[1738161315957,3.21542,3110.1,3109.3,3.21609]
[1738161316156,3.21545,3110.0,3109.4,3.21601]
[1738161316407,3.21574,3109.7,3109.4,0.07348497]
[1738161316537,0.04019988,3109.6,3108.7,2.0]
[1738161316738,6.21626,3109.2,3109.1,0.29717324]
[1738161317769,3.0,3109.2,3109.1,0.29717324]
[1738161317983,3.50509328,3109.6,3109.1,0.29717324]
[1738161318140,3.21615,3109.4,3109.1,0.29717324]
[1738161318342,3.21603,3109.5,3109.1,0.29717324]
[1738161318874,0.28925328,3109.6,3109.2,0.29717324]
[1738161319032,0.28925328,3109.6,3109.2,3.51342324]
[1738161319229,3.21601,3109.5,3109.2,0.29717324]
[1738161319607,6.22365,3109.3,3109.2,0.29717324]
[1738161319768,7.00575,3109.3,3109.2,0.29717324]
[1738161321433,3.21615,3109.3,3109.2,0.29717324]
[1738161321642,0.28925328,3109.6,3109.0,3.2164]
[1738161321842,3.21596,3109.5,3108.7,4.00761]
[1738161322067,3.2163,3109.2,3108.7,0.7909]
[1738161322272,3.50518328,3109.6,3109.0,3.21636]
[1738161322570,3.21597,3109.5,3108.8,3.21657]
[1738161322784,0.28925328,3109.6,3108.8,3.21666]
[1738161322936,0.28925328,3109.6,3108.8,3.24882394]
[1738161323271,6.4319,3109.5,3108.7,0.7909]
[1738161323487,3.21595,3109.5,3108.9,3.51365324]
[1738161323789,3.21616,3109.3,3108.9,0.29717324]
[1738161324084,3.21595,3109.5,3108.9,3.51367324]
[1738161324290,0.28925328,3109.6,3109.0,3.21645]
[1738161324432,0.28925328,3109.6,3109.3,3.21609]
[1738161324632,0.28925328,3109.6,3109.5,3.21595]
[1738161324874,0.28925328,3109.6,3109.5,3.80560524]
[1738161325174,0.28925328,3109.6,3109.5,4.58680524]
[1738161325585,0.28925328,3109.6,3109.5,4.55465]
[1738161325870,0.28925328,3109.6,3109.5,4.58680284]
[1738161326039,0.28925328,3109.6,3109.5,4.55465]
[1738161326245,0.28925328,3109.6,3109.5,4.58680273]
[1738161326540,0.28925328,3109.6,3109.5,4.55465]
[1738161326984,0.28925328,3109.6,3109.5,4.58680293]
[1738161327281,0.28925328,3109.6,3109.5,4.55465]
[1738161327658,0.28925328,3109.6,3109.5,4.85215636]
[1738161327862,0.28925328,3109.6,3109.5,1.07870636]
[1738161328094,0.28925328,3109.6,3109.5,0.29750636]
[1738161328847,3.50509328,3109.6,3109.5,0.29750636]
[1738161329049,4.18120265,3109.6,3109.5,0.29750636]
[1738161329646,0.28925328,3109.6,3109.5,0.29750636]
[1738161329882,3.50519328,3109.6,3109.5,0.06584496]
[1738161330067,3.54539494,3109.6,3109.5,0.06584496]
[1738161330261,6.22345,3109.5,3109.4,1.32e-06]
[1738161330491,7.05455,3109.5,3109.4,1.32e-06]
[1738161330660,8.96910033,3109.5,3109.4,1.32e-06]
[1738161331104,14.89660033,3109.5,3109.4,1.32e-06]
[1738161331253,0.8161,3109.3,3108.0,0.428]
[1738161331565,0.7517,3108.5,3107.8,0.05883813]
[1738161331770,0.7517,3108.5,3107.7,0.428]
[1738161331771,3.21701,3108.5,3107.9,3.21752]
[1738161331987,3.7517,3108.9,3107.9,3.21752]
[1738161332152,3.7517,3108.9,3108.0,0.03217395]
[1738161332153,3.21673,3108.8,3108.0,0.03217395]
[1738161332358,3.21629,3109.2,3108.5,4.01536]
[1738161332582,3.21609,3109.4,3108.4,3.21707]
[1738161332854,3.21639,3109.1,3108.3,5.2171]
[1738161333078,3.2162,3109.3,3108.7,3.21671]
[1738161333393,0.28925328,3109.6,3109.3,3.21615]
[1738161333708,0.28925328,3109.6,3109.0,3.21639]
[1738161333906,3.21602,3109.5,3108.8,4.03438]
[1738161334142,0.28925328,3109.6,3109.0,3.21637]
[1738161334540,0.28925328,3109.6,3109.2,3.21625]
[1738161334714,0.28925328,3109.6,3109.0,3.21637]
[1738161334912,0.28925328,3109.6,3108.8,0.8178]
[1738161334913,3.2163,3109.2,3108.8,0.8178]
[1738161335118,3.21639,3109.1,3109.0,0.426]
[1738161335447,3.21639,3109.1,3108.4,3.21707]
[1738161335448,3.538019,3109.1,3108.5,0.425]
[1738161335606,0.8128,3109.2,3108.5,0.425]
[1738161335809,3.21667,3108.8,3108.5,0.425]
[1738161336023,3.21688,3108.6,3108.1,2.547]
[1738161336270,3.21688,3108.6,3108.2,0.424]
[1738161336433,3.21711,3108.4,3108.2,0.424]
[1738161336755,3.21719,3108.3,3108.2,0.424]
[1738161337103,3.21729,3108.2,3108.1,2.547]
[1738161337331,6.21729,3108.2,3108.1,2.547]
[1738161337849,3.21755,3108.0,3107.7,0.424]
[1738161338340,6.21732,3108.2,3107.7,0.424]
[1738161338509,7.3008151,3108.2,3107.7,0.424]
[1738161338709,7.3008151,3108.2,3107.2,0.7744]
[1738161338710,3.21794,3107.6,3107.2,0.7744]
[1738161338904,3.21793,3107.6,3107.3,0.421]
[1738161339536,3.21814,3107.4,3107.1,0.005]
[1738161339725,3.21822,3107.3,3107.2,0.42]
[1738161339920,3.861856,3107.3,3107.2,0.42]
[1738161340158,0.643636,3107.3,3107.2,0.42]
[1738161340369,0.7575,3107.6,3107.2,0.42]
[1738161340659,3.21802,3107.5,3107.1,0.424]
[1738161340866,3.21833,3107.2,3107.1,0.005]
[1738161341171,3.21833,3107.2,3107.1,1e-05]
[1738161341172,7.00533,3107.2,3107.1,1e-05]
[1738161341327,8.45327942,3107.2,3107.1,1e-05]
[1738161341867,8.46077942,3107.2,3107.1,1e-05]
[1738161343536,8.45327942,3107.2,3107.1,1e-05]
[1738161344061,5.45327942,3107.2,3107.1,1e-05]
[1738161344241,4.00533,3107.2,3107.1,1e-05]
[1738161344440,0.7795,3107.2,3107.1,1e-05]
[1738161344637,3.21791,3107.6,3107.1,1e-05]
[1738161344964,3.21813,3107.4,3107.1,1e-05]
[1738161345140,3.21833,3107.2,3107.1,1e-05]
[1738161345341,3.861976,3107.2,3107.1,1e-05]
[1738161346530,0.0075,3107.8,3107.1,1e-05]
[1738161346531,3.21795,3107.6,3107.1,1e-05]
[1738161346731,3.21822,3107.4,3107.2,0.12410355]
[1738161347270,3.21795,3107.6,3107.2,0.12410355]
[1738161347473,3.21803,3107.5,3107.2,0.12410355]
[1738161347628,3.21795,3107.6,3107.2,0.12410355]
[1738161347833,3.21803,3107.5,3107.2,0.12410355]
[1738161348030,3.21822,3107.3,3107.2,0.12410355]
[1738161348241,3.21833,3107.2,3107.1,1e-05]
[1738161349650,4.02943,3107.2,3107.1,1e-05]
[1738161349851,4.02943,3107.2,3107.1,0.07417034]
[1738161349852,7.03693,3107.2,3107.1,0.07417034]
[1738161350173,3.21905,3106.5,3106.2,0.7674]
[1738161350346,3.21916,3106.4,3105.9,0.422]
[1738161350546,3.21905,3106.5,3105.9,0.422]
[1738161350547,3.21934,3106.3,3105.9,0.422]
[1738161350873,3.21938,3106.2,3105.9,0.422]
[1738161351071,3.21921,3106.4,3105.9,0.422]
[1738161351275,3.541131,3106.4,3105.9,0.422]
[1738161351437,3.21885,3106.7,3106.1,3.21946]
[1738161351639,3.21908,3106.5,3105.9,3.64166]
[1738161351903,3.2191,3106.5,3105.9,3.64166]
[1738161352368,3.21887,3106.7,3105.9,3.67385332]
[1738161352568,3.21908,3106.5,3105.9,3.64166]